bitfinex-derivatives/quotes_SOLF0:USTF0_20260115
["timestamp","ask_amount","ask_price","bid_price","bid_amount"]
[1768487987239,3.24395969,144.05,143.93,100.47429623]
[1768487987536,3.24395969,144.05,143.93,100.42230866]
[1768487987742,3.24395969,144.05,143.97,6.253]
[1768487988140,3.24395969,144.05,143.93,3.12770866]
[1768487988343,3.29698148,144.02,143.92,179.4223]
[1768487988834,3.24395969,144.01,143.93,6.2547]
[1768487989144,3.24395969,144.01,143.89,179.4403]
[1768487989532,3.24395969,144.01,143.9,97.3175]
[1768487989732,3.24395969,144.01,143.89,179.4403]
[1768487989934,3.24395969,144.01,143.9,97.318]
[1768487990234,3.24395969,144.01,143.94,6.2542]
[1768487990938,3.24395969,144.01,143.96,0.04554141]
[1768487991132,3.0804474,143.99,143.89,3.08193389]
[1768487991340,3.03547866,143.99,143.9,82.12]
[1768487991642,3.03547866,143.99,143.89,3.08193389]
[1768487991839,3.03547866,143.99,143.86,3.0927897]
[1768487992051,3.03547866,143.99,143.87,82.12]
[1768487992343,3.03547866,143.99,143.91,0.05305022]
[1768487992344,0.04888536,143.94,143.91,0.05305022]
[1768487993334,3.03547866,143.99,143.91,0.05305022]
[1768487994052,3.03547866,143.98,143.91,0.05305022]
[1768487994840,82.12,144.01,143.91,0.05305022]
[1768487994841,91.40727866,144.01,143.91,0.05305022]
[1768487995042,91.40727866,144.01,143.89,3.0927897]
[1768487995242,85.15547866,144.01,143.95,0.04816963]
[1768487995441,3.03547866,144.0,143.95,0.04816963]
[1768487997148,3.03547866,144.04,143.95,0.04816963]
[1768487997352,9.28567866,144.04,143.93,85.1927897]
[1768487997550,9.28567866,144.04,143.98,0.04765401]
[1768487998146,0.04935788,144.02,143.98,0.04765401]
[1768488000250,0.04935788,144.02,143.93,85.1927897]
[1768488000446,3.03547866,144.04,143.94,3.0927897]
[1768488000954,3.03547866,144.04,143.96,6.2535]
[1768488001246,85.15547866,144.07,143.96,3.0927897]
[1768488001452,0.0525594,144.03,143.99,0.04932258]
[1768488001851,3.03547866,144.07,143.99,0.04932258]
[1768488002351,3.03547866,144.1,144.01,6.2512]
[1768488002557,3.03547866,144.1,143.99,3.0927897]
[1768488002848,3.03547866,144.08,144.03,0.05274996]
[1768488003046,3.03547866,144.06,143.94,82.1]
[1768488003246,3.03547866,144.03,143.92,3.0927897]
[1768488003851,12.01661575,144.06,143.94,100.3837897]
[1768488004153,3.03547866,144.06,143.96,0.05335306]
[1768488004353,3.03547866,144.09,144.0,6.2517]
[1768488004952,3.03547866,144.09,144.01,6.2513]
[1768488005253,3.03547866,144.09,144.04,0.04426232]
[1768488005457,12.01661575,144.12,144.04,0.04426232]
[1768488005753,3.03547866,144.11,144.04,0.04426232]
[1768488006250,124.0,144.14,144.04,0.04426232]
[1768488006251,3.03547866,144.14,144.04,0.04426232]
[1768488006455,3.03547866,144.14,144.03,6.2503]
[1768488006651,0.04760779,144.1,144.08,0.04459435]
[1768488006851,0.04760779,144.1,144.01,100.3335897]
[1768488007054,3.03547866,144.1,144.02,6.2507]
[1768488007256,3.03547866,144.14,144.03,97.2298]
[1768488007453,3.03547866,144.14,144.04,97.2216]
[1768488007757,3.03547866,144.14,144.04,100.3143897]
[1768488008053,0.04586418,144.1,144.08,0.04939923]
[1768488008444,0.04586418,144.1,144.02,182.4075897]
[1768488008849,0.04586418,144.1,144.04,97.2235]
[1768488009059,3.08134284,144.1,144.0,97.2463]
[1768488009245,3.03547866,144.14,144.03,100.3225897]
[1768488009652,3.03547866,144.14,144.07,0.04477974]
[1768488009847,0.04539879,144.1,144.07,0.04477974]
[1768488010054,0.04539879,144.1,144.0,3.0927897]
[1768488010260,3.03547866,144.1,144.0,3.0927897]
[1768488010451,3.03547866,144.14,144.02,3.0927897]
[1768488010754,3.03547866,144.13,144.0,82.06]
[1768488010956,3.03547866,144.1,143.99,3.0927897]
[1768488011256,3.03547866,144.1,144.03,0.04674668]
[1768488011858,0.04913329,144.08,144.03,0.04674668]
[1768488012668,0.04913329,144.08,144.03,3.13953638]
[1768488012971,236.31491164,144.15,144.04,85.1527897]
[1768488013474,6.2454,144.15,144.04,85.1527897]
[1768488013768,3.03547866,144.15,144.04,85.1527897]
[1768488014069,3.03547866,144.15,144.08,0.04681776]
[1768488015271,0.04910944,144.13,144.08,0.04681776]
[1768488018767,3.0845881,144.13,144.03,3.0927897]
[1768488018968,3.03547866,144.13,144.0,3.0927897]
[1768488019163,3.03547866,144.12,143.97,3.0927897]
[1768488019369,3.03547866,144.11,143.98,82.04]
[1768488019672,3.03547866,144.1,143.99,3.0927897]
[1768488020172,3.03547866,144.09,143.99,3.0927897]
[1768488020377,0.0442992,144.06,143.99,3.0927897]
[1768488020580,0.0442992,144.06,144.03,0.04843599]
[1768488021974,0.0442992,144.06,143.97,88.2929]
[1768488022174,3.33219072,144.06,143.97,6.2529]
[1768488022371,3.33219072,144.06,143.97,3.09717349]
[1768488022776,3.33219072,144.09,143.97,3.09717349]
[1768488023179,0.04899512,144.04,144.02,0.04876148]
[1768488023380,0.04899512,144.04,143.97,3.09717349]
[1768488023581,3.33219072,144.09,143.97,3.09717349]
[1768488023772,3.33219072,144.09,143.99,6.252]
[1768488023978,3.33219072,144.06,143.93,3.09717349]
[1768488024284,3.33219072,144.06,143.92,82.04]
[1768488024285,3.112608,144.03,143.92,82.04]
[1768488024474,0.04659304,144.01,143.92,82.04]
[1768488024790,3.112608,144.03,143.92,82.04]
[1768488025081,3.112608,144.03,143.92,88.295]
[1768488025278,3.112608,144.03,143.91,97.3114]
[1768488025482,8.6268685,144.03,143.91,97.3114]
[1768488025680,0.05169324,143.98,143.93,6.2546]
[1768488026579,0.05169324,143.98,143.94,0.04520951]
[1768488026879,3.112608,144.02,143.94,0.04520951]
[1768488027679,3.112608,144.02,143.9,82.06]
[1768488027680,3.112608,144.0,143.9,82.06]
[1768488027982,3.15724007,143.99,143.9,82.06]
[1768488028286,3.112608,143.99,143.9,82.06]
[1768488028474,3.112608,144.03,143.91,3.20873588]
[1768488028678,3.112608,144.01,143.91,3.20873588]
[1768488028878,0.05163505,143.98,143.9,82.06]
[1768488029279,3.16424305,143.98,143.9,82.06]
[1768488029588,3.16424305,143.98,143.87,82.06]
[1768488029880,3.112608,143.96,143.87,82.06]
[1768488030279,3.112608,144.0,143.89,3.20873588]
[1768488030984,0.04609296,143.96,143.89,9.46503588]
[1768488031172,3.112608,144.03,143.91,0.04705769]
[1768488031373,3.112608,144.03,143.91,3.20873588]
[1768488031582,3.112608,144.03,143.92,9.46383588]
[1768488031781,3.112608,144.03,143.93,3.20873588]
[1768488032484,3.112608,144.03,143.97,0.0528847]
[1768488032881,9.362608,144.05,143.97,0.0528847]
[1768488033081,3.112608,144.04,143.93,85.28873588]
[1768488033484,3.112608,144.03,143.93,85.28873588]
[1768488033784,3.15943432,144.0,143.89,3.20873588]
[1768488033986,3.112608,144.0,143.89,85.28873588]
[1768488034184,3.112608,144.0,143.9,3.20873588]
[1768488034887,3.112608,144.0,143.9,9.46473588]
[1768488035287,9.363308,144.03,143.92,3.20873588]
[1768488035988,9.363308,144.03,143.93,3.20873588]
[1768488036182,0.05291968,143.99,143.96,0.04424688]
[1768488036584,6.2499,144.05,143.96,3.25298276]
[1768488036891,3.112608,144.1,143.96,3.20873588]
[1768488037085,3.112608,144.1,143.99,9.46083588]
[1768488037287,3.112608,144.1,144.0,3.20873588]
[1768488037589,0.04574834,144.06,144.04,0.05035115]
[1768488037792,3.112608,144.13,144.04,0.05035115]
[1768488037992,3.112608,144.13,144.03,3.20873588]
[1768488038384,3.112608,144.11,144.0,82.08]
[1768488038694,3.112608,144.11,144.0,85.28873588]
[1768488038888,0.04776297,144.07,144.0,85.28873588]
[1768488039695,0.04776297,144.07,143.99,6.2521]
[1768488040092,0.04776297,144.07,144.02,0.05112341]
[1768488042786,3.112608,144.12,144.02,0.05112341]
[1768488042989,3.112608,144.12,143.99,3.20873588]
[1768488043499,3.112608,144.1,143.99,3.20873588]
[1768488043796,3.112608,144.1,143.99,82.06]
[1768488043995,0.04943086,144.06,143.98,6.2524]
[1768488044197,0.04943086,144.06,143.99,3.20873588]
[1768488044701,0.04943086,144.06,144.01,6.2511]
[1768488044994,3.112608,144.11,144.01,3.20873588]
[1768488045193,3.112608,144.15,144.03,3.20873588]
[1768488045398,3.112608,144.15,144.04,3.20873588]
[1768488045905,3.112608,144.15,144.08,0.05121032]
[1768488046097,0.04464714,144.11,144.08,0.05121032]
[1768488046298,0.04464714,144.11,144.04,3.20873588]
[1768488046697,0.04464714,144.11,144.02,82.06]
[1768488046900,3.112608,144.11,144.01,3.20873588]
[1768488047397,0.05341185,144.07,144.01,3.20873588]
[1768488047989,0.05341185,144.07,144.03,0.05273751]
[1768488048307,9.360208,144.1,144.03,0.05273751]
[1768488048493,0.05146852,144.06,143.97,3.20873588]
[1768488048692,3.112608,144.09,143.97,85.26873588]
[1768488049000,3.112608,144.04,143.93,3.20873588]
[1768488049600,0.04748508,144.0,143.93,9.46343588]
[1768488049903,0.04748508,144.0,143.97,0.04522253]
[1768488050307,6.2499,144.05,143.97,0.04522253]
[1768488050609,6.2499,144.05,143.94,3.20873588]
[1768488050797,6.2485,144.08,143.98,3.23309959]
[1768488051000,6.2485,144.08,143.98,85.29309959]
[1768488051303,0.05298503,144.04,143.98,85.29309959]
[1768488051598,0.05298503,144.04,144.0,0.04441315]
[1768488051996,0.05298503,144.04,143.94,8.74736009]
[1768488052208,0.05298503,144.04,143.95,82.06]
[1768488052397,3.20670795,144.05,143.95,82.06]
[1768488053002,6.2507,144.03,143.95,82.06]
[1768488053207,0.04615987,144.01,143.95,82.06]
[1768488053597,0.04615987,144.01,143.97,0.04740316]
[1768488053918,6.29765987,144.01,143.97,0.04740316]
[1768488054107,6.29765987,144.01,143.92,82.06]
[1768488054408,3.20670795,144.06,143.93,3.23309959]
[1768488054604,6.2502,144.04,143.94,9.48739959]
[1768488054808,3.20670795,144.04,143.94,3.23309959]
[1768488055211,0.04558373,144.0,143.98,0.04567085]
[1768488055507,0.04558373,144.0,143.92,87.5742605]
[1768488055903,6.29748373,144.0,143.9,3.23309959]
[1768488056102,3.20670795,144.0,143.9,3.23309959]
[1768488056311,3.20670795,144.0,143.87,3.23309959]
[1768488056613,0.0444317,143.95,143.92,0.05263996]
[1768488056809,3.20670795,144.0,143.92,0.05263996]
[1768488057216,9.45870795,144.0,143.92,0.05263996]
[1768488058008,0.04914823,143.97,143.92,0.05263996]
[1768488060313,6.2512,144.02,143.92,3.28573955]
[1768488060513,3.20670795,144.03,143.92,3.23309959]
[1768488060714,3.20670795,144.04,143.93,3.23309959]
[1768488060913,9.45700795,144.04,143.93,9.48759959]
[1768488061119,3.20670795,144.04,143.93,9.48759959]
[1768488061321,3.20670795,144.03,143.93,3.23309959]
[1768488061514,0.05056894,144.0,143.97,0.04569953]
[1768488061715,0.05056894,144.0,143.93,3.23309959]
[1768488062213,0.05056894,144.0,143.9,3.23309959]
[1768488062417,3.20670795,143.99,143.9,3.23309959]
[1768488062614,3.20670795,143.99,143.89,85.31309959]
[1768488062806,3.20670795,143.99,143.93,0.04673874]
[1768488063008,0.05183712,143.95,143.93,0.04673874]
[1768488064616,3.20670795,144.02,143.93,0.04673874]
[1768488064817,3.20670795,144.06,143.95,3.23309959]
[1768488065024,8.25213845,144.05,143.95,3.23309959]
[1768488065218,3.20670795,144.05,143.95,3.23309959]
[1768488065418,6.2506,144.03,143.95,3.23309959]
[1768488065613,0.05169211,144.01,143.95,3.23309959]
[1768488066221,0.05169211,144.01,143.97,6.29733815]
[1768488066520,3.20670795,144.09,143.97,3.27743774]
[1768488066916,3.20670795,144.09,143.97,3.23309959]
[1768488067221,6.2489,144.07,143.97,9.48589959]
[1768488067416,3.20670795,144.09,143.97,9.48589959]
[1768488067617,0.0486947,144.03,144.02,0.05225007]
[1768488067808,3.20670795,144.09,144.02,0.05225007]
[1768488068010,0.04412874,144.04,144.02,0.05225007]
[1768488068327,0.04618704,144.04,144.02,0.05225007]
[1768488068519,0.04618704,144.04,143.97,3.23309959]
[1768488068817,0.04618704,144.04,143.96,82.08]
[1768488069220,0.04618704,144.04,143.97,3.23309959]
[1768488069620,0.04618704,144.04,143.99,0.05001749]
[1768488070118,3.25289499,144.04,143.93,3.23309959]
[1768488070324,0.04618704,144.04,143.94,106.03466009]
[1768488070618,3.20670795,144.1,143.99,6.252]
[1768488071025,3.20670795,144.1,143.98,82.08]
[1768488071026,3.20670795,144.07,143.98,82.08]
[1768488071224,0.0514478,144.06,143.98,88.3326]
[1768488072123,0.0514478,144.06,143.99,6.252]
[1768488072519,0.0514478,144.06,143.98,85.31309959]
[1768488072826,0.0514478,144.06,143.98,91.56549959]
[1768488073121,0.0514478,144.06,143.98,85.31309959]
[1768488073321,0.0514478,144.06,144.01,3.23309959]
[1768488073525,3.20670795,144.1,144.01,3.23309959]
[1768488073923,3.20670795,144.14,144.01,3.23309959]
[1768488074833,0.04879659,144.09,144.03,6.2504]
[1768488075228,0.04879659,144.09,144.01,9.48419959]
[1768488075428,0.04879659,144.09,144.01,3.23309959]
[1768488075631,0.04879659,144.09,144.04,0.04964556]
[1768488076224,3.20670795,144.08,143.98,82.08]
[1768488076626,3.20670795,144.06,143.98,88.3326]
[1768488076824,3.20670795,144.06,143.98,82.08]
[1768488077318,0.04452961,144.03,143.99,6.2521]
[1768488077918,0.04452961,144.03,143.98,82.08]
[1768488078118,9.45470795,144.09,143.99,3.23309959]
[1768488078333,9.45470795,144.09,143.99,3.27785523]
[1768488078530,3.20670795,144.08,143.98,88.3325]
[1768488078927,3.20670795,144.03,143.91,5.5142605]
[1768488079132,3.20670795,144.03,143.9,3.23309959]
[1768488079133,3.20670795,144.01,143.9,3.23309959]
[1768488079319,0.04761309,143.98,143.9,3.23309959]
[1768488079628,0.04761309,143.98,143.9,9.48909959]
[1768488079826,0.04761309,143.98,143.9,3.23309959]
[1768488081035,8.34528595,143.97,143.86,82.06]
[1768488081228,3.16256609,143.97,143.86,82.06]
[1768488081533,0.05268936,143.93,143.9,0.04758081]
[1768488082232,3.16256609,143.97,143.9,0.04758081]
[1768488083436,0.04399415,143.95,143.9,0.04758081]
[1768488086128,3.08569343,144.0,143.9,3.2213171]
[1768488086328,3.08569343,144.0,143.9,3.17373629]
[1768488086536,6.2512,144.02,143.93,3.17373629]
[1768488086833,3.08569343,144.03,143.94,85.25373629]
[1768488087338,0.04748716,144.0,143.97,0.04631013]
[1768488089730,0.04748716,144.0,143.94,82.08]
[1768488090441,0.04748716,144.0,143.94,82.08]
[1768488090833,0.04748716,144.0,143.96,0.04992901]
[1768488092438,3.08569343,144.06,143.96,3.2236653]
[1768488092640,3.08569343,144.06,143.96,3.17373629]
[1768488092947,6.2485,144.08,143.98,9.42613629]
[1768488093146,3.08569343,144.09,143.98,9.42613629]
[1768488093345,5.02023362,144.08,143.98,3.17373629]
[1768488093549,0.04528322,144.04,144.02,0.05160683]
[1768488093740,3.08569343,144.09,144.02,0.05160683]
[1768488094344,6.29902301,144.07,144.02,0.05160683]
[1768488094546,0.05012301,144.07,144.02,0.05160683]
[1768488095848,0.05012301,144.07,143.94,179.3666]
[1768488095849,3.08569343,144.04,143.94,82.08]
[1768488096041,3.08569343,144.03,143.94,82.08]
[1768488096645,100.30019343,144.06,143.94,85.25373629]
[1768488096948,0.05165385,144.0,143.97,0.04502654]
[1768488097148,6.2515,144.01,143.94,85.25373629]
[1768488097343,0.04843851,144.0,143.94,82.08]
[1768488097941,6.30053851,144.0,143.94,82.08]
[1768488099043,6.30053851,144.0,143.96,0.044928]
[1768488099452,0.04843851,144.0,143.96,0.044928]
[1768488099655,3.08569343,144.06,143.96,3.21866429]
[1768488099844,3.08569343,144.06,143.97,3.17373629]
[1768488100246,6.2504,144.04,143.97,3.17373629]
[1768488100851,3.08569343,144.09,143.98,3.17373629]
[1768488101654,6.2498,144.05,143.96,6.2533]
[1768488101857,3.08569343,144.07,143.97,3.17373629]
[1768488102050,3.08569343,144.07,143.99,0.04394695]
[1768488102846,6.2493,144.06,143.99,0.04394695]
[1768488103353,3.08569343,144.1,143.99,0.04394695]
[1768488103554,3.08569343,144.1,143.97,3.17373629]
[1768488104246,6.2482,144.09,143.99,6.2521]
[1768488104450,6.2482,144.09,143.99,9.42583629]
[1768488104854,6.2482,144.09,144.03,0.0488165]
[1768488105050,179.2437,144.13,144.03,0.0488165]
[1768488105051,0.04741021,144.05,144.03,0.0488165]
[1768488105353,0.04741021,144.05,143.9,105.91747056]
[1768488105354,3.08569343,144.03,143.93,3.17373629]
[1768488105850,3.08569343,144.03,143.91,82.08]
[1768488105851,3.08569343,144.0,143.91,82.08]
[1768488106256,0.04881837,143.97,143.94,0.05063962]
[1768488106551,0.04881837,143.97,143.87,3.17373629]
[1768488106759,3.08569343,143.97,143.87,85.25373629]
[1768488107551,0.04945907,143.93,143.87,85.25373629]
[1768488107754,0.04945907,143.93,143.91,0.05012689]
[1768488108256,3.08569343,143.96,143.87,82.08]
[1768488108450,3.08569343,143.93,143.81,3.17373629]
[1768488108651,3.08569343,143.93,143.82,85.25373629]
[1768488108955,3.08569343,143.93,143.82,91.51313629]
[1768488109254,3.08569343,143.93,143.78,3.17373629]
[1768488109255,3.08569343,143.91,143.78,3.17373629]
[1768488109458,3.08569343,143.91,143.79,85.25373629]
[1768488109658,0.04424373,143.86,143.79,85.25373629]
[1768488109956,0.04424373,143.86,143.8,6.2603]
[1768488110555,0.04424373,143.86,143.82,0.05161519]
[1768488111456,0.04424373,143.86,143.75,3.33117987]
[1768488111649,0.04424373,143.86,143.76,82.1]
[1768488111960,3.23607919,143.88,143.76,82.1]
[1768488112154,9.49337919,143.88,143.76,91.69327987]
[1768488112356,3.23607919,143.87,143.76,91.69327987]
[1768488112862,0.05191872,143.83,143.78,3.33117987]
[1768488113250,0.05191872,143.83,143.76,82.1]
[1768488113455,0.05191872,143.83,143.79,0.04862859]
[1768488114161,0.05191872,143.83,143.73,3.33117987]
[1768488114162,3.28799791,143.83,143.73,3.33117987]
[1768488114460,3.23607919,143.82,143.71,3.33117987]
[1768488115162,0.04582491,143.78,143.75,0.04857089]
[1768488115558,9.49477919,143.85,143.75,0.04857089]
[1768488115759,9.49477919,143.85,143.73,9.59467987]
[1768488116064,3.23607919,143.84,143.74,3.33117987]
[1768488116259,6.2594,143.83,143.74,3.33117987]
[1768488116567,6.2594,143.83,143.74,85.45117987]
[1768488116764,0.04661926,143.8,143.74,85.45117987]
[1768488117063,0.04661926,143.8,143.76,0.05093785]
[1768488119864,3.23607919,143.87,143.76,3.38211772]
[1768488120066,3.23607919,143.87,143.76,3.33117987]
[1768488120561,100.58917919,143.85,143.74,85.45117987]
[1768488120859,3.23607919,143.84,143.74,85.45117987]
[1768488121063,0.04920458,143.81,143.74,85.45117987]
[1768488121256,0.04920458,143.81,143.75,85.49117987]
[1768488121656,100.58647919,143.86,143.75,85.49117987]
[1768488122161,97.3258,143.89,143.79,0.04577645]
[1768488122359,97.3042,143.93,143.79,0.04577645]
[1768488122360,100.55827919,143.9,143.79,3.33117987]
[1768488122552,6.2579,143.87,143.79,3.33117987]
[1768488122756,3.23607919,143.84,143.72,3.30848945]
[1768488122961,3.23607919,143.83,143.73,82.16]
[1768488123160,6.2603,143.81,143.73,82.16]
[1768488123369,0.04445547,143.79,143.77,0.05047571]
[1768488123661,3.23607919,143.86,143.77,0.05047571]
[1768488123864,3.23607919,143.86,143.74,3.30848945]
[1768488124166,3.23607919,143.86,143.75,3.30848945]
[1768488124665,0.05337809,143.82,143.79,0.04591524]
[1768488125166,3.28945728,143.82,143.73,82.16]
[1768488125371,3.23607919,143.82,143.71,3.33117987]
[1768488125558,3.23607919,143.82,143.72,82.16]
[1768488125958,3.23607919,143.8,143.72,82.16]
[1768488126358,0.04755794,143.77,143.72,85.49117987]
[1768488126563,97.3788,143.82,143.75,0.0448447]
[1768488126564,3.23607919,143.82,143.75,0.0448447]
[1768488126867,3.23607919,143.8,143.72,82.16]
[1768488127457,9.49687919,143.8,143.72,82.16]
[1768488127767,3.23607919,143.8,143.72,82.16]
[1768488128061,0.04898457,143.77,143.69,3.30684675]
[1768488128253,3.28506376,143.77,143.65,85.51117987]
[1768488128458,6.2625,143.76,143.66,6.2663]
[1768488128662,6.2625,143.76,143.66,3.33117987]
[1768488129061,3.23607919,143.77,143.67,6.2659]
[1768488129265,0.05094197,143.72,143.66,3.33117987]
[1768488129563,3.23607919,143.8,143.71,0.04798872]
[1768488129764,3.23607919,143.8,143.71,6.2642]
[1768488130260,3.23607919,143.8,143.71,88.4442]
[1768488130468,3.23607919,143.8,143.72,6.2638]
[1768488130658,3.23607919,143.8,143.74,0.04608573]
[1768488131357,3.23607919,143.8,143.71,82.18]
[1768488131358,3.23607919,143.78,143.71,82.18]
[1768488131562,6.2624,143.76,143.67,88.4459]
[1768488132160,6.2624,143.76,143.68,6.2656]
[1768488132366,3.23607919,143.81,143.69,3.33117987]
[1768488132866,100.63767919,143.78,143.69,3.33117987]
[1768488133267,97.4104,143.77,143.69,3.33117987]
[1768488133470,97.4104,143.77,143.67,82.18]
[1768488133771,0.04456742,143.74,143.67,82.18]
[1768488134168,6.30796742,143.74,143.67,82.18]
[1768488134765,6.30796742,143.74,143.69,0.04466422]
[1768488135072,0.04456742,143.74,143.69,3.37584409]
[1768488135268,3.23607919,143.81,143.69,3.37584409]
[1768488135566,6.2619,143.77,143.69,3.33117987]
[1768488136357,6.2619,143.77,143.72,0.05176073]
[1768488136665,3.23607919,143.78,143.65,3.30712403]
[1768488136866,3.23607919,143.77,143.66,82.2]
[1768488137266,6.2625,143.76,143.66,82.2]
[1768488138065,6.2625,143.76,143.66,88.4665]
[1768488138460,3.23607919,143.77,143.66,82.2]
[1768488138666,0.04772013,143.72,143.7,0.0524293]
[1768488138966,0.05189279,143.72,143.7,0.0524293]
[1768488140471,0.05189279,143.72,143.66,82.2]
[1768488140665,0.05189279,143.72,143.65,9.57402403]
[1768488140666,0.05189279,143.72,143.62,3.30712403]
[1768488140873,100.72685866,143.74,143.64,82.22]
[1768488141065,6.2645,143.71,143.64,82.22]
[1768488141268,3.29395866,143.73,143.64,82.22]
[1768488141477,3.29395866,143.73,143.64,85.29708898]
[1768488141671,3.29395866,143.73,143.67,0.04864131]
[1768488142478,3.29395866,143.72,143.67,0.04864131]
[1768488142678,0.04835499,143.71,143.64,82.22]
[1768488143575,3.34231365,143.71,143.64,82.22]
[1768488143982,3.34231365,143.71,143.66,0.0439143]
[1768488144477,6.265,143.7,143.66,0.0439143]
[1768488144677,3.34231365,143.71,143.66,0.0439143]
[1768488144978,0.04835499,143.71,143.66,0.0439143]
[1768488146575,3.01601538,143.76,143.66,3.15025578]
[1768488146773,3.01601538,143.76,143.64,82.22]
[1768488146774,9.27981538,143.73,143.64,82.22]
[1768488147373,6.263,143.75,143.65,3.10634148]
[1768488147578,3.01601538,143.76,143.65,3.10634148]
[1768488147772,3.01601538,143.76,143.69,0.05054613]
[1768488147972,0.05183456,143.72,143.69,0.05054613]
[1768488148580,101.86421538,143.71,143.61,3.10634148]
[1768488148779,3.01601538,143.7,143.61,3.10634148]
[1768488148972,3.01601538,143.73,143.61,3.10634148]
[1768488149675,3.01601538,143.73,143.66,0.05053974]
[1768488149870,3.01601538,143.78,143.67,3.10634148]
[1768488150069,97.4137,143.76,143.67,85.34634148]
[1768488150273,100.42971538,143.76,143.67,3.10634148]
[1768488150476,6.2634,143.74,143.67,3.10634148]
[1768488150775,6.2634,143.74,143.69,0.04850212]
[1768488150973,0.05199678,143.72,143.69,0.04850212]
[1768488151880,6.2626,143.76,143.69,0.04850212]
[1768488152774,0.0472974,143.74,143.69,0.04850212]
[1768488155471,3.01601538,143.79,143.69,3.1548436]
[1768488155672,6.2616,143.78,143.69,9.37154148]
[1768488156078,3.01601538,143.82,143.7,3.10634148]
[1768488156382,3.01601538,143.82,143.67,97.4701]
[1768488156383,3.01601538,143.82,143.72,3.10634148]
[1768488156584,3.01601538,143.82,143.73,82.24]
[1768488156779,3.01601538,143.82,143.76,0.05082314]
[1768488156973,3.01601538,143.85,143.76,0.05082314]
[1768488157183,3.01601538,143.88,143.76,3.10634148]
[1768488157380,3.01601538,143.88,143.77,3.10634148]
[1768488157575,3.01601538,143.91,143.79,3.10634148]
[1768488157781,3.01601538,143.91,143.77,97.4034]
[1768488157782,3.01601538,143.91,143.81,3.10634148]
[1768488158283,8.02895707,143.9,143.83,0.045425]
[1768488158484,3.01601538,143.9,143.83,0.045425]
[1768488159485,0.05237895,143.88,143.83,0.045425]
[1768488162090,3.01601538,143.91,143.83,0.045425]
[1768488162785,3.01601538,143.94,143.83,0.045425]
[1768488162984,124.0,143.95,143.83,0.045425]
[1768488162985,3.01601538,143.92,143.83,0.045425]
[1768488163187,3.01601538,143.92,143.82,82.22]
[1768488164690,0.05282629,143.88,143.86,0.04773247]
[1768488165989,3.01601538,143.92,143.86,0.04773247]
[1768488166387,3.01601538,143.97,143.86,0.04773247]
[1768488166688,3.01601538,143.97,143.88,6.2566]
[1768488167686,3.01601538,143.97,143.89,6.2564]
[1768488168385,3.01601538,143.97,143.92,0.05137821]
[1768488168590,0.05181916,143.94,143.92,0.05137821]
[1768488168790,0.05181916,143.94,143.87,6.2572]
[1768488168989,0.05181916,143.94,143.87,88.4372]
[1768488170080,0.05181916,143.94,143.89,0.05132256]
[1768488170289,3.06783454,143.94,143.82,3.10634148]
[1768488170483,3.01601538,143.94,143.83,82.18]
[1768488170885,9.27071538,143.94,143.84,6.2586]
[1768488171091,3.01601538,143.94,143.84,3.19653205]
[1768488171498,3.01601538,143.94,143.88,0.05284484]
[1768488171690,0.04689085,143.9,143.84,9.45503205]
[1768488171995,3.26736545,143.9,143.83,82.18]
[1768488172197,3.2204746,143.88,143.78,82.16]
[1768488172990,0.04897764,143.84,143.82,0.04695217]
[1768488173990,3.2204746,143.88,143.82,0.04695217]
[1768488174393,9.4764746,143.91,143.82,0.04695217]
[1768488174593,9.4764746,143.91,143.8,9.45683205]
[1768488174892,3.2204746,143.89,143.77,3.19653205]
[1768488175090,3.2204746,143.89,143.84,0.0473529]
[1768488175298,3.2204746,143.88,143.78,82.16]
[1768488175499,3.26853635,143.88,143.78,82.16]
[1768488175688,3.2204746,143.88,143.78,82.16]
[1768488175893,3.2204746,143.88,143.77,82.16]
[1768488176094,6.2585,143.85,143.77,82.16]
[1768488176295,3.2204746,143.84,143.77,82.16]
[1768488176503,3.2204746,143.84,143.7,97.4485]
[1768488176698,6.30633645,143.82,143.71,85.35653205]
[1768488176900,6.2598,143.82,143.71,85.35653205]
[1768488177099,6.2598,143.82,143.72,3.19653205]
[1768488177805,6.2598,143.82,143.73,6.2633]
[1768488177990,3.2204746,143.84,143.73,3.19653205]
[1768488177991,9.4793746,143.84,143.73,3.19653205]
[1768488178396,0.04919742,143.8,143.77,0.04753467]
[1768488178799,3.2204746,143.84,143.77,0.04753467]
[1768488178993,6.2585,143.85,143.77,0.04753467]
[1768488179306,389.2142,143.93,143.77,3.24406672]
[1768488179307,106.07345407,143.91,143.77,3.24406672]
[1768488179600,3.2204746,143.9,143.77,3.19653205]